[Event "Titled Tuesday Blitz June 6 Late 2023"]
[White "Ward, Ieuan C"]
[Black "Goncalves, Davi Sulzbacher"]
[WhiteFideId "406627"]
[BlackFideId "2154510"]
[WhiteElo "2310"]
[BlackElo "2182"]
[Result "1-0"]
[Round "2"]
[TimeControl "180+2"]
[Date "2023.06.07"]
[WhiteClock "0:00:10"]
[BlackClock "0:00:03"]
[Board "143"]

1. e4 {[%clk 0:03:00]}  c5 {[%clk 0:02:57]} 2. Nf3 {[%clk 0:03:00]}  Nc6 {[%clk 0:02:56]} 3. d4 {[%clk 0:03:00]}  cxd4 {[%clk 0:02:57]} 4. c3 {[%clk 0:03:01]}  d3 {[%clk 0:02:53]} 5. Bxd3 {[%clk 0:03:01]}  g6 {[%clk 0:02:54]} 6. O-O {[%clk 0:03:01]}  Bg7 {[%clk 0:02:54]} 7. c4 {[%clk 0:02:58]}  d6 {[%clk 0:02:53]} 8. h3 {[%clk 0:02:56]}  Nf6 {[%clk 0:02:53]} 9. Nc3 {[%clk 0:02:56]}  O-O {[%clk 0:02:54]} 10. Re1 {[%clk 0:02:55]}  Be6 {[%clk 0:02:51]} 11. Qd2 {[%clk 0:02:52]}  Rc8 {[%clk 0:02:48]} 12. b3 {[%clk 0:02:51]}  a6 {[%clk 0:02:35]} 13. Bb2 {[%clk 0:02:50]}  Ne5 {[%clk 0:02:24]} 14. Nd4 {[%clk 0:02:38]}  Nh5 {[%clk 0:02:09]} 15. Be2 {[%clk 0:02:30]}  Nf6 {[%clk 0:01:12]} 16. f4 {[%clk 0:02:23]}  Nc6 {[%clk 0:01:10]} 17. Nd5 {[%clk 0:01:54]}  Nxe4 {[%clk 0:01:04]} 18. Qe3 {[%clk 0:01:41]}  Bxd5 {[%clk 0:01:03]} 19. cxd5 {[%clk 0:01:35]}  Nxd4 {[%clk 0:00:58]} 20. Bxd4 {[%clk 0:01:31]}  Nc3 {[%clk 0:00:51]} 21. Bxg7 {[%clk 0:01:17]}  Kxg7 {[%clk 0:00:50]} 22. Bg4 {[%clk 0:01:15]}  Rc5 {[%clk 0:00:27]} 23. Qxe7 {[%clk 0:01:08]}  Nxd5 {[%clk 0:00:21]} 24. Qxb7 {[%clk 0:01:02]}  Nxf4 {[%clk 0:00:20]} 25. Qxa6 {[%clk 0:00:55]}  Qf6 {[%clk 0:00:17]} 26. Rad1 {[%clk 0:00:52]}  Rc2 {[%clk 0:00:16]} 27. Qxd6 {[%clk 0:00:37]}  Qxd6 {[%clk 0:00:07]} 28. Rxd6 {[%clk 0:00:36]}  Rxg2+ {[%clk 0:00:07]} 29. Kh1 {[%clk 0:00:36]}  Rxa2 {[%clk 0:00:08]} 30. Rd7 {[%clk 0:00:35]}  Rf2 {[%clk 0:00:07]} 31. Kg1 {[%clk 0:00:34]}  Rb2 {[%clk 0:00:06]} 32. Re3 {[%clk 0:00:31]}  h5 {[%clk 0:00:05]} 33. Bf3 {[%clk 0:00:25]}  Nxh3+ {[%clk 0:00:05]} 34. Kh1 {[%clk 0:00:23]}  Ng5 {[%clk 0:00:05]} 35. Bd5 {[%clk 0:00:21]}  h4 {[%clk 0:00:05]} 36. Bc4 {[%clk 0:00:21]}  Rc2 {[%clk 0:00:05]} 37. Re5 {[%clk 0:00:20]}  Kh6 {[%clk 0:00:04]} 38. Rd4 {[%clk 0:00:18]}  Kh5 {[%clk 0:00:04]} 39. Be2+ {[%clk 0:00:16]}  Rxe2 {[%clk 0:00:04]} 40. Rxe2 {[%clk 0:00:16]}  f5 {[%clk 0:00:04]} 41. Rd7 {[%clk 0:00:16]}  f4 {[%clk 0:00:04]} 42. Rf2 {[%clk 0:00:16]}  f3 {[%clk 0:00:04]} 43. Kh2 {[%clk 0:00:16]}  Rb8 {[%clk 0:00:05]} 44. Rd3 {[%clk 0:00:17]}  Re8 {[%clk 0:00:04]} 45. b4 {[%clk 0:00:16]}  Re4 {[%clk 0:00:04]} 46. Rb3 {[%clk 0:00:15]}  Rg4 {[%clk 0:00:03]} 47. b5 {[%clk 0:00:15]}  Rg3 {[%clk 0:00:03]} 48. b6 {[%clk 0:00:15]}  Rh3+ {[%clk 0:00:03]} 49. Kg1 {[%clk 0:00:16]}  Ne4 {[%clk 0:00:03]} 50. Rb5+ {[%clk 0:00:15]}  g5 {[%clk 0:00:03]} 51. b7 {[%clk 0:00:10]} 1-0


[Site "https://www.chess.com"]

[Event "Titled Tuesday Blitz June 6 Late 2023"]
[White "Cardozo Munar, Carlos Eduardo"]
[Black "Mei, Austin"]
[WhiteFideId "4409477"]
[BlackFideId "30948479"]
[WhiteElo "2067"]
[BlackElo "2125"]
[Result "0-1"]
[Round "2"]
[TimeControl "180+2"]
[Date "2023.06.07"]
[WhiteClock "0:00:03"]
[BlackClock "0:00:14"]
[Board "145"]

1. d4 {[%clk 0:03:00]}  Nf6 {[%clk 0:03:00]} 2. Bg5 {[%clk 0:02:59]}  c5 {[%clk 0:02:59]} 3. d5 {[%clk 0:02:59]}  d6 {[%clk 0:02:59]} 4. Nc3 {[%clk 0:02:58]}  h6 {[%clk 0:02:57]} 5. Bd2 {[%clk 0:02:57]}  e5 {[%clk 0:02:55]} 6. e4 {[%clk 0:02:55]}  a6 {[%clk 0:02:52]} 7. a4 {[%clk 0:02:53]}  g6 {[%clk 0:02:53]} 8. Bd3 {[%clk 0:02:53]}  Bg7 {[%clk 0:02:53]} 9. Nge2 {[%clk 0:02:54]}  O-O {[%clk 0:02:53]} 10. O-O {[%clk 0:02:55]}  Ne8 {[%clk 0:02:47]} 11. f4 {[%clk 0:02:55]}  exf4 {[%clk 0:02:46]} 12. Nxf4 {[%clk 0:02:55]}  Nd7 {[%clk 0:02:46]} 13. Kh1 {[%clk 0:02:53]}  Ne5 {[%clk 0:02:45]} 14. Qe1 {[%clk 0:02:47]}  Bd7 {[%clk 0:02:41]} 15. Qg3 {[%clk 0:02:47]}  Qe7 {[%clk 0:02:36]} 16. Rae1 {[%clk 0:02:36]}  Nc7 {[%clk 0:02:36]} 17. Nd1 {[%clk 0:02:31]}  b5 {[%clk 0:02:35]} 18. axb5 {[%clk 0:02:30]}  axb5 {[%clk 0:02:36]} 19. c3 {[%clk 0:02:21]}  Ra2 {[%clk 0:02:16]} 20. Bb1 {[%clk 0:02:19]}  Ra1 {[%clk 0:02:16]} 21. Ne3 {[%clk 0:02:20]}  Rb8 {[%clk 0:01:46]} 22. h3 {[%clk 0:02:20]}  b4 {[%clk 0:01:45]} 23. cxb4 {[%clk 0:02:10]}  cxb4 {[%clk 0:01:45]} 24. Nc2 {[%clk 0:02:11]}  Ra7 {[%clk 0:01:24]} 25. Bxb4 {[%clk 0:02:05]}  Rab7 {[%clk 0:01:25]} 26. Bc3 {[%clk 0:02:05]}  Nb5 {[%clk 0:01:20]} 27. Ne3 {[%clk 0:01:54]}  Nxc3 {[%clk 0:01:19]} 28. bxc3 {[%clk 0:01:55]}  Rb2 {[%clk 0:01:11]} 29. Nd3 {[%clk 0:01:41]}  Nxd3 {[%clk 0:01:09]} 30. Bxd3 {[%clk 0:01:41]}  Bxc3 {[%clk 0:01:07]} 31. Ng4 {[%clk 0:01:42]}  Bxg4 {[%clk 0:00:48]} 32. Rc1 {[%clk 0:01:13]}  Bd2 {[%clk 0:00:43]} 33. Qxg4 {[%clk 0:01:10]}  Bxc1 {[%clk 0:00:42]} 34. Rxc1 {[%clk 0:01:11]}  Qg5 {[%clk 0:00:36]} 35. Qxg5 {[%clk 0:00:52]}  hxg5 {[%clk 0:00:37]} 36. Rc6 {[%clk 0:00:44]}  R8b6 {[%clk 0:00:34]} 37. Rc7 {[%clk 0:00:33]}  Rd2 {[%clk 0:00:28]} 38. Rc3 {[%clk 0:00:23]}  Rbb2 {[%clk 0:00:26]} 39. Bf1 {[%clk 0:00:24]}  Rd1 {[%clk 0:00:24]} 40. Rf3 {[%clk 0:00:23]}  Re2 {[%clk 0:00:19]} 41. Kh2 {[%clk 0:00:17]}  Rxe4 {[%clk 0:00:19]} 42. Bd3 {[%clk 0:00:16]}  Re5 {[%clk 0:00:19]} 43. Bc4 {[%clk 0:00:13]}  Rd4 {[%clk 0:00:19]} 44. Ba2 {[%clk 0:00:13]}  Rf4 {[%clk 0:00:19]} 45. Rg3 {[%clk 0:00:11]}  f6 {[%clk 0:00:19]} 46. Rc3 {[%clk 0:00:11]}  Re7 {[%clk 0:00:18]} 47. Rc6 {[%clk 0:00:10]}  Rf2 {[%clk 0:00:17]} 48. Bc4 {[%clk 0:00:09]}  Rc2 {[%clk 0:00:15]} 49. Kg3 {[%clk 0:00:05]}  Kg7 {[%clk 0:00:15]} 50. h4 {[%clk 0:00:02]}  gxh4+ {[%clk 0:00:15]} 51. Kxh4 {[%clk 0:00:03]}  Rxg2 {[%clk 0:00:14]} 0-1


[Site "https://www.chess.com"]

[Event "Titled Tuesday Blitz June 6 Late 2023"]
[White "Haszon, David"]
[Black "Kostiukov, Alexandr"]
[WhiteFideId "733610"]
[BlackFideId "14108100"]
[WhiteElo "2210"]
[BlackElo "2202"]
[Result "1-0"]
[Round "2"]
[TimeControl "180+2"]
[Date "2023.06.07"]
[WhiteClock "0:01:27"]
[BlackClock "0:00:03"]
[Board "146"]

1. d4 {[%clk 0:03:00]}  g6 {[%clk 0:02:52]} 2. e4 {[%clk 0:02:59]}  Bg7 {[%clk 0:02:48]} 3. Nc3 {[%clk 0:02:59]}  d6 {[%clk 0:02:49]} 4. Bf4 {[%clk 0:02:57]}  e5 {[%clk 0:02:45]} 5. dxe5 {[%clk 0:02:57]}  dxe5 {[%clk 0:02:46]} 6. Qxd8+ {[%clk 0:02:57]}  Kxd8 {[%clk 0:02:47]} 7. O-O-O+ {[%clk 0:02:57]}  Nd7 {[%clk 0:02:46]} 8. Bg3 {[%clk 0:02:54]}  c6 {[%clk 0:02:42]} 9. f4 {[%clk 0:02:49]}  exf4 {[%clk 0:02:41]} 10. Bxf4 {[%clk 0:02:50]}  Bh6 {[%clk 0:02:41]} 11. g3 {[%clk 0:02:49]}  Ke7 {[%clk 0:02:36]} 12. Nf3 {[%clk 0:02:49]}  f6 {[%clk 0:02:20]} 13. a4 {[%clk 0:02:28]}  Ne5 {[%clk 0:02:07]} 14. Be2 {[%clk 0:02:04]}  Bh3 {[%clk 0:01:42]} 15. Rhe1 {[%clk 0:01:55]}  Nxf3 {[%clk 0:01:20]} 16. Bxf3 {[%clk 0:01:55]}  Be6 {[%clk 0:01:18]} 17. e5 {[%clk 0:01:49]}  f5 {[%clk 0:01:13]} 18. a5 {[%clk 0:01:46]}  g5 {[%clk 0:00:44]} 19. Be3 {[%clk 0:01:44]}  g4 {[%clk 0:00:42]} 20. Bg2 {[%clk 0:01:37]}  a6 {[%clk 0:00:32]} 21. Na4 {[%clk 0:01:35]}  Bxe3+ {[%clk 0:00:30]} 22. Rxe3 {[%clk 0:01:36]}  Nh6 {[%clk 0:00:09]} 23. Nc5 {[%clk 0:01:36]}  Bc8 {[%clk 0:00:03]} 24. e6 {[%clk 0:01:27]} 1-0


[Site "https://www.chess.com"]

[Event "Titled Tuesday Blitz June 6 Late 2023"]
[White "MunichMouse"]
[Black "Jimenez Almeida, Luis David"]
[BlackFideId "22242244"]
[WhiteElo "2295"]
[BlackElo "2245"]
[Result "0-1"]
[Round "2"]
[TimeControl "180+2"]
[Date "2023.06.07"]
[WhiteClock "0:00:02"]
[BlackClock "0:00:01"]
[Board "148"]

1. d4 {[%clk 0:03:00]}  g6 {[%clk 0:02:57]} 2. c4 {[%clk 0:03:00]}  Bg7 {[%clk 0:02:57]} 3. g3 {[%clk 0:03:01]}  f5 {[%clk 0:02:57]} 4. Bg2 {[%clk 0:03:00]}  Nf6 {[%clk 0:02:57]} 5. Nc3 {[%clk 0:03:00]}  O-O {[%clk 0:02:57]} 6. Nf3 {[%clk 0:02:56]}  d6 {[%clk 0:02:57]} 7. O-O {[%clk 0:02:56]}  Nc6 {[%clk 0:02:50]} 8. d5 {[%clk 0:02:56]}  Ne5 {[%clk 0:02:50]} 9. Nxe5 {[%clk 0:02:52]}  dxe5 {[%clk 0:02:51]} 10. b3 {[%clk 0:02:51]}  e4 {[%clk 0:02:43]} 11. Bb2 {[%clk 0:02:51]}  e6 {[%clk 0:02:41]} 12. Ba3 {[%clk 0:02:45]}  Re8 {[%clk 0:02:39]} 13. d6 {[%clk 0:02:45]}  Ng4 {[%clk 0:02:33]} 14. Rc1 {[%clk 0:02:39]}  cxd6 {[%clk 0:02:16]} 15. Bxd6 {[%clk 0:02:33]}  Bd7 {[%clk 0:02:05]} 16. h3 {[%clk 0:02:32]}  Ne5 {[%clk 0:02:01]} 17. f3 {[%clk 0:02:28]}  exf3 {[%clk 0:01:58]} 18. exf3 {[%clk 0:02:28]}  Bc6 {[%clk 0:01:58]} 19. f4 {[%clk 0:02:18]}  Bxg2 {[%clk 0:01:57]} 20. Kxg2 {[%clk 0:02:18]}  Nf7 {[%clk 0:01:52]} 21. Bc5 {[%clk 0:02:10]}  Qc7 {[%clk 0:01:50]} 22. Be3 {[%clk 0:02:00]}  Rad8 {[%clk 0:01:50]} 23. Qc2 {[%clk 0:01:58]}  e5 {[%clk 0:01:49]} 24. Nd5 {[%clk 0:01:51]}  Qc6 {[%clk 0:01:42]} 25. Rfd1 {[%clk 0:01:51]}  h5 {[%clk 0:01:27]} 26. Qf2 {[%clk 0:01:50]}  b6 {[%clk 0:01:22]} 27. Kh2 {[%clk 0:01:43]}  exf4 {[%clk 0:01:14]} 28. Bxf4 {[%clk 0:01:41]}  Kh7 {[%clk 0:01:09]} 29. Re1 {[%clk 0:01:35]}  Nd6 {[%clk 0:00:55]} 30. Bg5 {[%clk 0:00:43]}  Rxe1 {[%clk 0:00:25]} 31. Rxe1 {[%clk 0:00:40]}  Re8 {[%clk 0:00:25]} 32. Rxe8 {[%clk 0:00:26]}  Qxe8 {[%clk 0:00:25]} 33. Qe3 {[%clk 0:00:27]}  Ne4 {[%clk 0:00:22]} 34. Bf4 {[%clk 0:00:25]}  Qf7 {[%clk 0:00:17]} 35. a4 {[%clk 0:00:24]}  Qe8 {[%clk 0:00:10]} 36. a5 {[%clk 0:00:23]}  bxa5 {[%clk 0:00:07]} 37. Qxa7 {[%clk 0:00:23]}  h4 {[%clk 0:00:06]} 38. gxh4 {[%clk 0:00:21]}  Qd8 {[%clk 0:00:05]} 39. Qe7 {[%clk 0:00:15]}  Qxe7 {[%clk 0:00:03]} 40. Nxe7 {[%clk 0:00:16]}  Nc5 {[%clk 0:00:03]} 41. Nc6 {[%clk 0:00:12]}  Nxb3 {[%clk 0:00:03]} 42. Bc7 {[%clk 0:00:12]}  a4 {[%clk 0:00:04]} 43. Bd6 {[%clk 0:00:13]}  Nd2 {[%clk 0:00:02]} 44. c5 {[%clk 0:00:11]}  a3 {[%clk 0:00:02]} 45. Nb4 {[%clk 0:00:12]}  Nc4 {[%clk 0:00:01]} 46. Na2 {[%clk 0:00:12]}  Na5 {[%clk 0:00:01]} 47. Kg2 {[%clk 0:00:12]}  Nc6 {[%clk 0:00:01]} 48. Kf3 {[%clk 0:00:12]}  Bb2 {[%clk 0:00:02]} 49. Ke3 {[%clk 0:00:12]}  Kh6 {[%clk 0:00:03]} 50. Bf4+ {[%clk 0:00:09]}  Kh5 {[%clk 0:00:03]} 51. Kd3 {[%clk 0:00:09]}  Kxh4 {[%clk 0:00:03]} 52. Kc4 {[%clk 0:00:09]}  g5 {[%clk 0:00:03]} 53. Bd6 {[%clk 0:00:08]}  f4 {[%clk 0:00:03]} 54. Kd5 {[%clk 0:00:07]}  Na7 {[%clk 0:00:02]} 55. Bb8 {[%clk 0:00:04]}  Nb5 {[%clk 0:00:02]} 56. c6 {[%clk 0:00:02]}  f3 {[%clk 0:00:01]} 0-1


[Site "https://www.chess.com"]

[Event "Titled Tuesday Blitz June 6 Late 2023"]
[White "Krishnakumar, Sriram"]
[Black "Rodriguez Polo, Mateo"]
[WhiteFideId "30915856"]
[BlackFideId "24509396"]
[WhiteElo "2496"]
[BlackElo "2117"]
[Result "1-0"]
[Round "2"]
[TimeControl "180+2"]
[Date "2023.06.07"]
[WhiteClock "0:00:48"]
[BlackClock "0:00:01"]
[Board "149"]

1. e4 {[%clk 0:03:00]}  e5 {[%clk 0:02:59]} 2. Nf3 {[%clk 0:03:00]}  Nc6 {[%clk 0:03:00]} 3. d4 {[%clk 0:03:00]}  exd4 {[%clk 0:03:00]} 4. Nxd4 {[%clk 0:03:01]}  Nf6 {[%clk 0:03:00]} 5. Nxc6 {[%clk 0:03:01]}  bxc6 {[%clk 0:03:01]} 6. e5 {[%clk 0:03:01]}  Qe7 {[%clk 0:03:01]} 7. Qe2 {[%clk 0:03:01]}  Nd5 {[%clk 0:03:01]} 8. h4 {[%clk 0:03:02]}  d6 {[%clk 0:02:57]} 9. exd6 {[%clk 0:03:00]}  Qxe2+ {[%clk 0:02:57]} 10. Bxe2 {[%clk 0:03:00]}  cxd6 {[%clk 0:02:54]} 11. O-O {[%clk 0:02:57]}  Be6 {[%clk 0:02:49]} 12. c4 {[%clk 0:02:55]}  Nb6 {[%clk 0:02:48]} 13. b3 {[%clk 0:02:55]}  d5 {[%clk 0:02:48]} 14. cxd5 {[%clk 0:02:54]}  Nxd5 {[%clk 0:02:45]} 15. Bb2 {[%clk 0:02:53]}  O-O-O {[%clk 0:02:41]} 16. Nc3 {[%clk 0:02:48]}  Kb7 {[%clk 0:02:38]} 17. Rfd1 {[%clk 0:02:44]}  Be7 {[%clk 0:02:21]} 18. g3 {[%clk 0:02:41]}  Bf6 {[%clk 0:02:13]} 19. Rac1 {[%clk 0:02:38]}  Rhe8 {[%clk 0:02:03]} 20. Bf3 {[%clk 0:02:11]}  Nb4 {[%clk 0:01:39]} 21. Na4 {[%clk 0:01:19]}  Bxb2 {[%clk 0:01:28]} 22. Nxb2 {[%clk 0:01:17]}  Bd5 {[%clk 0:01:21]} 23. Bxd5 {[%clk 0:01:14]}  cxd5 {[%clk 0:01:03]} 24. a3 {[%clk 0:01:11]}  Re2 {[%clk 0:00:44]} 25. Na4 {[%clk 0:01:11]}  Na2 {[%clk 0:00:36]} 26. Rc5 {[%clk 0:01:07]}  d4 {[%clk 0:00:30]} 27. Rc4 {[%clk 0:01:01]}  d3 {[%clk 0:00:25]} 28. Nc5+ {[%clk 0:01:01]}  Kb6 {[%clk 0:00:20]} 29. Rxd3 {[%clk 0:00:57]}  Re1+ {[%clk 0:00:12]} 30. Kg2 {[%clk 0:00:56]}  Rxd3 {[%clk 0:00:11]} 31. Nxd3 {[%clk 0:00:56]}  Rd1 {[%clk 0:00:10]} 32. Ne5 {[%clk 0:00:55]}  f6 {[%clk 0:00:08]} 33. Nf3 {[%clk 0:00:54]}  Rb1 {[%clk 0:00:07]} 34. b4 {[%clk 0:00:54]}  Rb3 {[%clk 0:00:08]} 35. Nd4 {[%clk 0:00:49]}  Rxa3 {[%clk 0:00:07]} 36. Rc6+ {[%clk 0:00:49]}  Kb7 {[%clk 0:00:07]} 37. Re6 {[%clk 0:00:50]}  Rd3 {[%clk 0:00:06]} 38. Re7+ {[%clk 0:00:50]}  Kb6 {[%clk 0:00:07]} 39. Nc2 {[%clk 0:00:49]}  Rd2 {[%clk 0:00:06]} 40. Ne3 {[%clk 0:00:48]}  Nxb4 {[%clk 0:00:06]} 41. Rxg7 {[%clk 0:00:47]}  Kb5 {[%clk 0:00:03]} 42. Rxh7 {[%clk 0:00:47]}  a5 {[%clk 0:00:04]} 43. Rh5+ {[%clk 0:00:47]}  Ka4 {[%clk 0:00:03]} 44. Rxa5+ {[%clk 0:00:46]}  Kxa5 {[%clk 0:00:01]} 45. Nc4+ {[%clk 0:00:47]}  Kb5 {[%clk 0:00:01]} 46. Nxd2 {[%clk 0:00:48]}  Kc6 {[%clk 0:00:01]} 47. Ne4 {[%clk 0:00:48]} 1-0


[Site "https://www.chess.com"]

[Event "Titled Tuesday Blitz June 6 Late 2023"]
[White "Swicarz, Maciej"]
[Black "Dubreuil, Julien"]
[WhiteFideId "1113585"]
[BlackFideId "621285"]
[WhiteElo "2181"]
[BlackElo "2268"]
[Result "1-0"]
[Round "2"]
[TimeControl "180+2"]
[Date "2023.06.07"]
[WhiteClock "0:00:20"]
[BlackClock "0:00:15"]
[Board "151"]

1. c4 {[%clk 0:03:00]}  Nf6 {[%clk 0:02:59]} 2. Nc3 {[%clk 0:03:00]}  c5 {[%clk 0:02:59]} 3. Nf3 {[%clk 0:02:59]}  Nc6 {[%clk 0:02:57]} 4. g3 {[%clk 0:02:55]}  d5 {[%clk 0:02:57]} 5. cxd5 {[%clk 0:02:54]}  Nxd5 {[%clk 0:02:58]} 6. Bg2 {[%clk 0:02:55]}  Nc7 {[%clk 0:02:58]} 7. O-O {[%clk 0:02:54]}  e5 {[%clk 0:02:58]} 8. d3 {[%clk 0:02:51]}  Be7 {[%clk 0:02:58]} 9. Nd2 {[%clk 0:02:48]}  Bd7 {[%clk 0:02:53]} 10. a4 {[%clk 0:02:43]}  O-O {[%clk 0:02:52]} 11. Nc4 {[%clk 0:02:42]}  f6 {[%clk 0:02:51]} 12. Qb3 {[%clk 0:02:40]}  Kh8 {[%clk 0:02:47]} 13. Be3 {[%clk 0:02:25]}  Rb8 {[%clk 0:02:41]} 14. a5 {[%clk 0:02:22]}  Nd4 {[%clk 0:02:32]} 15. Bxd4 {[%clk 0:02:21]}  cxd4 {[%clk 0:02:32]} 16. Ne4 {[%clk 0:02:13]}  Be6 {[%clk 0:02:22]} 17. Rfc1 {[%clk 0:02:11]}  Na6 {[%clk 0:02:18]} 18. Qd1 {[%clk 0:02:00]}  Nb4 {[%clk 0:02:13]} 19. Qd2 {[%clk 0:01:57]}  Nd5 {[%clk 0:02:12]} 20. Ra4 {[%clk 0:01:51]}  Bd7 {[%clk 0:02:09]} 21. Raa1 {[%clk 0:01:47]}  Be6 {[%clk 0:02:08]} 22. h4 {[%clk 0:01:41]}  Bb4 {[%clk 0:02:06]} 23. Qd1 {[%clk 0:01:39]}  Qe7 {[%clk 0:01:56]} 24. Kh2 {[%clk 0:01:30]}  Rfc8 {[%clk 0:01:56]} 25. Bh3 {[%clk 0:01:29]}  Bxh3 {[%clk 0:01:52]} 26. Kxh3 {[%clk 0:01:30]}  f5 {[%clk 0:01:43]} 27. Ng5 {[%clk 0:01:28]}  h6 {[%clk 0:01:34]} 28. Nxe5 {[%clk 0:01:25]}  Kg8 {[%clk 0:01:23]} 29. Ngf3 {[%clk 0:01:24]}  f4 {[%clk 0:01:20]} 30. Qb3 {[%clk 0:01:11]}  Qe6+ {[%clk 0:01:15]} 31. g4 {[%clk 0:01:10]}  Kh7 {[%clk 0:01:09]} 32. Rc4 {[%clk 0:01:06]}  Bd6 {[%clk 0:01:06]} 33. Rxd4 {[%clk 0:01:00]}  Rc5 {[%clk 0:01:00]} 34. Re4 {[%clk 0:00:55]}  h5 {[%clk 0:00:55]} 35. Nd4 {[%clk 0:00:49]}  hxg4+ {[%clk 0:00:33]} 36. Nxg4 {[%clk 0:00:46]}  Qd7 {[%clk 0:00:28]} 37. Rg1 {[%clk 0:00:40]}  Nf6 {[%clk 0:00:20]} 38. Qe6 {[%clk 0:00:39]}  Qxe6 {[%clk 0:00:15]} 39. Rxe6 {[%clk 0:00:40]}  Nxg4 {[%clk 0:00:15]} 40. Rxg4 {[%clk 0:00:39]}  Rd5 {[%clk 0:00:15]} 41. Nf5 {[%clk 0:00:32]}  Bf8 {[%clk 0:00:16]} 42. Rg5 {[%clk 0:00:29]}  Rbd8 {[%clk 0:00:14]} 43. b4 {[%clk 0:00:27]}  g6 {[%clk 0:00:13]} 44. Ne7 {[%clk 0:00:25]}  Rxg5 {[%clk 0:00:14]} 45. hxg5 {[%clk 0:00:25]}  Re8 {[%clk 0:00:13]} 46. Rxg6 {[%clk 0:00:23]}  Bxe7 {[%clk 0:00:13]} 47. Re6 {[%clk 0:00:23]}  Kg7 {[%clk 0:00:12]} 48. Kg4 {[%clk 0:00:23]}  Kf7 {[%clk 0:00:13]} 49. Re4 {[%clk 0:00:23]}  Rf8 {[%clk 0:00:13]} 50. Rxf4+ {[%clk 0:00:23]}  Ke8 {[%clk 0:00:14]} 51. Rxf8+ {[%clk 0:00:23]}  Kxf8 {[%clk 0:00:15]} 52. b5 {[%clk 0:00:22]}  Bb4 {[%clk 0:00:16]} 53. a6 {[%clk 0:00:22]}  b6 {[%clk 0:00:15]} 54. f4 {[%clk 0:00:21]}  Bd2 {[%clk 0:00:15]} 55. e4 {[%clk 0:00:21]}  Kf7 {[%clk 0:00:15]} 56. d4 {[%clk 0:00:21]}  Bc3 {[%clk 0:00:15]} 57. d5 {[%clk 0:00:21]}  Bd4 {[%clk 0:00:15]} 58. Kf5 {[%clk 0:00:21]}  Ke7 {[%clk 0:00:15]} 59. e5 {[%clk 0:00:20]} 1-0


[Site "https://www.chess.com"]